bitfinex/quotes_SOLUSD_20241122
["timestamp","ask_amount","ask_price","bid_price","bid_amount"]
[1732245272124,38.75548243,261.2,261.19,0.5]
[1732245272429,38.75548243,261.2,261.06,2.5]
[1732245272430,0.5726382,261.4,261.31,0.5]
[1732245272616,0.5726382,261.4,261.39,0.5]
[1732245273410,0.5726382,261.4,261.39,1.07360029]
[1732245274136,0.5726382,261.4,261.39,3.57360029]
[1732245274429,0.5726382,261.4,261.39,1.07360029]
[1732245274738,1.498,261.5,261.49,0.5]
[1732245275037,1.498,261.5,261.49,5.74880138]
[1732245275243,0.6,261.74,261.49,5.74880138]
[1732245275244,0.6,261.74,261.59,0.5]
[1732245275525,38.75548243,261.61,261.59,0.5]
[1732245276014,0.6,261.74,261.26,0.09367462]
[1732245276015,9.0731,261.6,261.26,0.09367462]
[1732245276209,0.39042674,261.4,261.29,0.09367462]
[1732245276410,9.0731,261.6,261.44,0.39042674]
[1732245276618,2.5,261.53,261.45,0.57325332]
[1732245276824,5.0,261.47,261.4,0.57343077]
[1732245277134,5.0,261.47,261.3,0.09367462]
[1732245277135,2.5,261.47,261.31,0.5736099]
[1732245277324,2.5,261.48,261.31,0.5736099]
[1732245278519,2.5,261.26,260.51,19.86198417]
[1732245278731,38.75548243,261.25,260.98,3.84]
[1732245278936,2.5,261.24,260.99,0.57413446]
[1732245279239,2.5,261.19,260.99,0.57413446]
[1732245279420,2.5,261.16,260.99,0.57413446]
[1732245279621,0.57337496,261.29,260.99,0.57413446]
[1732245279924,2.0,261.31,261.05,0.5]
[1732245280126,2.5,261.3,261.06,0.57401984]
[1732245280324,2.5,261.3,261.06,1.07401984]
[1732245280537,2.0,261.33,261.12,0.5]
[1732245280736,2.5,261.37,261.17,0.5]
[1732245280934,2.5,261.37,261.0,7.3268]
[1732245280935,2.0,261.48,261.23,0.5]
[1732245281113,2.0,261.5,261.28,0.5]
[1732245281320,2.0,261.48,261.29,1.07357851]
[1732245281519,4.5,261.5,261.29,1.07357851]
[1732245281819,2.0,261.48,261.29,1.07357851]
[1732245282134,2.0,261.48,260.37,23.89749837]
[1732245282135,38.75548243,261.33,261.13,0.5]
[1732245282334,40.75548243,261.37,261.14,0.57394788]
[1732245282513,2.5,261.34,261.14,0.57394788]
[1732245282713,2.5,261.38,261.16,0.5]
[1732245282929,38.75548243,261.45,261.22,0.5]
[1732245283112,40.75548243,261.5,261.25,0.5]
[1732245283314,38.75548243,261.5,261.29,0.5]
[1732245283522,2.0,261.47,261.3,0.57359302]
[1732245283736,40.75548243,261.42,261.22,0.5]
[1732245283944,2.5,261.4,261.17,0.5]
[1732245284121,2.0,261.43,261.22,0.5]
[1732245284316,2.0,261.43,261.18,4.41374046]
[1732245284317,2.0,261.43,261.23,1.0735948]
[1732245284949,38.75548243,261.44,261.23,0.5735948]
[1732245285250,2.0,261.45,261.23,0.5735948]
[1732245285426,2.0,261.45,261.26,0.5]
[1732245285618,2.0,261.45,261.27,0.57361248]
[1732245285817,2.0,261.52,261.3,0.5]
[1732245286043,2.0,261.52,261.31,0.57350608]
[1732245286221,4.5,261.52,261.31,0.57350608]
[1732245286418,2.0,261.52,261.31,0.57350608]
[1732245286734,2.0,261.51,261.31,0.57350608]
[1732245287036,0.19286088,261.53,261.31,2.8806452]
[1732245287338,0.19286088,261.47,261.31,0.57350608]
[1732245287543,0.19286088,261.33,261.17,0.48010363]
[1732245287720,0.19286088,261.27,261.04,2.30713912]
[1732245287923,0.19286088,261.23,260.98,2.30713912]
[1732245288257,20.9533,261.39,261.01,0.57412123]
[1732245288258,0.19286088,261.17,261.01,0.57412123]
[1732245288619,0.19286088,261.25,261.02,2.30713912]
[1732245288818,0.19286088,261.23,261.03,0.5741374]
[1732245289024,41.25548243,261.29,261.05,2.30713912]
[1732245289025,0.19286088,261.27,261.05,2.30713912]
[1732245289217,0.19286088,261.27,261.07,1.30713912]
[1732245289440,1.19286088,261.27,261.08,4.4140048]
[1732245290140,1.19286088,261.23,261.08,0.5740048]
[1732245290348,1.19286088,261.23,260.99,4.41411747]
[1732245290525,1.19286088,261.23,261.02,3.84]
[1732245290719,1.19286088,261.21,261.03,0.57410332]
[1732245291024,1.19286088,261.19,261.03,0.57410332]
[1732245291224,1.19286088,261.15,261.03,0.57410332]
[1732245291620,1.19286088,261.13,261.04,0.57429393]
[1732245291821,1.19286088,261.15,260.95,0.57428824]
[1732245292427,1.19286088,261.13,260.95,0.57428824]
[1732245293024,3.69286088,261.15,260.95,0.57428824]
[1732245293253,1.19286088,261.19,260.99,3.84]
[1732245293419,1.19286088,261.15,261.0,0.57415905]
[1732245293838,1.19286088,261.2,261.0,0.57415905]
[1732245294349,1.19286088,261.26,261.05,3.84]
[1732245294524,1.19286088,261.26,261.06,0.57403529]
[1732245294720,2.5,261.25,261.06,0.57403529]
[1732245294935,22.14616088,261.39,261.12,1.30713912]
[1732245295133,20.9533,261.39,261.15,1.30713912]
[1732245295336,2.5,261.4,261.19,3.84]
[1732245295547,2.5,261.4,261.18,1.30713912]
[1732245295548,2.5,261.4,261.2,0.57371621]
[1732245295749,1.19286088,261.41,261.2,1.88085533]
[1732245296333,2.5,261.4,261.21,3.84]
[1732245296644,1.19286088,261.49,261.24,1.30713912]
[1732245296941,1.19286088,261.49,261.25,0.57355208]
[1732245297240,2.5,261.48,261.28,3.84]
[1732245297433,2.5,261.48,261.29,0.57350894]
[1732245297623,2.5,261.47,261.29,0.57350894]
[1732245298024,1.19286088,261.62,261.34,1.30713912]
[1732245298330,2.5,261.62,261.4,3.84]
[1732245298648,2.5,261.55,261.41,0.57325654]
[1732245298945,1.19286088,261.51,261.41,0.57325654]
[1732245299124,2.5,261.49,261.3,1.30713912]
[1732245299443,2.5,261.44,261.31,0.57342852]
[1732245299647,2.5,261.47,261.31,0.57342852]
[1732245299956,38.75548243,261.49,261.31,0.57342852]
[1732245300263,2.5,261.55,261.31,0.57342852]
[1732245300557,2.5,261.47,261.31,0.57342852]
[1732245300748,2.5,261.46,261.31,0.57342852]
[1732245300951,38.75548243,261.52,261.31,0.57342852]
[1732245300952,2.5,261.52,261.31,0.57342852]
[1732245301157,2.5,261.53,261.31,0.57342852]
[1732245301346,12.8957,261.6,261.31,0.57342852]
[1732245301347,38.75548243,261.5,261.31,0.57342852]
[1732245301665,38.75548243,261.5,261.11,6.34]
[1732245301666,2.5,261.3,261.1,7.1095]
[1732245301956,2.5,261.47,261.11,0.57397281]
[1732245301957,2.5,261.34,261.11,0.57397281]
[1732245302455,2.5,261.29,261.11,0.57397281]
[1732245302662,2.5,261.3,261.11,0.57397281]
[1732245302846,2.5,261.2,261.11,0.57397281]
[1732245303154,2.5,261.3,261.0,2.5]
[1732245303334,2.5,261.3,261.02,2.5]
[1732245303536,2.5,261.22,261.03,0.57398564]
[1732245303763,38.75548243,261.36,261.03,0.57398564]
[1732245303764,2.5,261.29,261.05,2.5]
[1732245304059,2.5,261.36,261.09,2.5]
[1732245304266,2.5,261.39,261.31,3.61359778]
[1732245304566,0.352,261.44,261.36,3.61359778]
[1732245304745,0.352,261.44,261.42,3.61359778]
[1732245304940,0.352,261.44,261.43,4.29194454]
[1732245305157,0.2266,261.44,261.43,4.29194454]
[1732245305362,2.5,261.52,261.43,4.29194454]
[1732245305655,2.5,261.52,261.42,0.118098]
[1732245305656,2.5,261.5,261.49,3.62495599]
[1732245305856,2.5,261.48,261.46,3.62495599]
[1732245306041,2.5,261.48,261.42,0.118098]
[1732245306042,2.5,261.46,261.45,3.62495599]
[1732245306241,2.5,261.46,261.45,11.698826]
[1732245306460,2.5,261.46,261.45,4.67928294]
[1732245306755,41.25548243,261.46,261.42,3.75435226]
[1732245306957,2.5,261.43,261.42,0.118098]
[1732245307149,38.75548243,261.44,261.42,3.75604143]
[1732245307357,65.74959477,261.43,261.42,0.118098]
[1732245307555,2.5,261.35,261.14,7.01954306]
[1732245307765,2.5,261.26,261.15,12.16716774]
[1732245307966,2.5,261.26,261.16,11.59303892]
[1732245308166,2.5,261.26,260.97,7.1095]
[1732245308167,2.5,261.18,261.17,11.59303892]
[1732245308544,2.5,261.23,261.17,11.59303892]
[1732245308741,0.48381341,261.23,261.18,4.39975178]
[1732245308963,0.48381341,261.25,261.19,4.39975178]
[1732245309261,0.48381341,261.26,261.2,4.39975178]
[1732245309456,26.1372,261.38,261.21,4.40889332]
[1732245309457,0.48381341,261.22,261.21,4.40889332]
[1732245309653,0.06548823,261.22,261.21,11.00836528]
[1732245309859,22.3113,261.38,261.21,11.00836528]
[1732245310159,22.3113,261.38,261.07,4.93451177]
[1732245310160,38.75548243,261.44,261.22,11.582261]
[1732245310358,38.82097066,261.44,261.23,11.00836528]
[1732245310561,0.06548823,261.4,261.24,11.58218547]
[1732245310753,0.06548823,261.4,261.25,11.00836528]
[1732245310948,0.06548823,261.4,261.11,2.5]
[1732245310949,0.06548823,261.41,261.26,11.58217042]
[1732245311155,38.82097066,261.44,261.27,11.00836528]
[1732245311360,38.82097066,261.44,261.28,11.00836528]
[1732245311566,38.82097066,261.44,261.18,3.84]
[1732245311567,38.82097066,261.44,261.29,11.58217638]
[1732245311759,0.06548823,261.4,261.3,11.00836528]
[1732245312075,0.06548823,261.4,261.18,3.84]
[1732245312076,62.59785466,261.32,261.31,11.00836528]
[1732245312247,2.5,261.3,260.99,7.22869631]
[1732245312573,38.75548243,261.2,260.99,0.57414836]
[1732245312773,0.71794878,261.19,260.99,0.57414836]
[1732245313074,38.75548243,261.12,260.99,0.57414836]
[1732245313288,38.75548243,261.03,260.84,0.57452084]
[1732245313447,2.5,261.15,260.79,2.5]
[1732245313448,0.71846671,261.15,260.79,2.5]
[1732245313646,38.75548243,261.1,260.8,0.57460297]
[1732245313861,0.71832231,261.15,261.09,3.70742101]
[1732245314069,38.75548243,261.11,261.07,3.70786279]
[1732245314262,38.75548243,261.07,261.01,3.70786279]
[1732245314456,39.47383957,261.15,261.02,3.70786279]
[1732245314662,39.47383957,261.15,261.06,3.70786279]
[1732245314978,39.47355368,261.2,261.12,3.70786279]
[1732245315284,2.5,261.11,261.09,3.70786279]
[1732245315473,22.5,261.04,261.03,3.70786279]
[1732245315664,23.776884,261.01,260.99,3.70786279]
[1732245315861,26.276884,260.98,260.94,3.70786279]
[1732245316064,26.276884,260.98,260.59,95.41482624]
[1732245316065,2.5,260.92,260.66,0.57502004]
[1732245316272,20.0,260.94,260.61,23.89749837]
[1732245316273,38.75548243,260.89,260.61,23.89749837]
[1732245316573,38.75548243,260.89,260.62,0.57509257]
[1732245316574,0.71886571,260.88,260.62,0.57509257]
[1732245316769,38.75548243,260.84,260.62,0.57509257]
[1732245316970,0.71914082,260.83,260.62,0.57509257]
[1732245317283,38.75548243,260.87,260.62,0.57509257]
[1732245317455,0.71891939,260.86,260.62,0.57509257]
[1732245317655,38.75548243,260.84,260.63,0.57512995]
[1732245317867,38.75548243,260.82,260.57,0.57522198]
[1732245318061,0.7190982,260.87,260.57,0.57522198]
[1732245318274,38.75548243,260.91,260.58,26.39749837]
[1732245318472,38.75548243,260.89,260.59,0.57512893]
[1732245318695,2.5,260.93,260.59,0.57512893]
[1732245318696,38.75548243,260.87,260.59,0.57512893]
[1732245318979,0.71895567,260.86,260.59,0.57512893]
[1732245319177,0.71895633,260.88,260.59,0.57512893]
[1732245319373,0.71885427,260.9,260.59,0.57512893]
[1732245319591,38.75548243,260.89,260.59,0.57512893]
[1732245319884,0.71891075,261.0,260.63,2.5]
[1732245320060,20.9899,261.01,260.7,2.5]
[1732245320262,8.89,261.09,260.73,31.11165903]
[1732245320462,0.71825416,261.08,260.79,2.5]
[1732245320675,0.71825416,261.08,260.73,21.7692]
[1732245320676,0.71823958,261.07,260.8,0.57459167]
[1732245321480,38.75548243,261.08,260.8,0.57459167]
[1732245321686,20.9899,261.14,260.8,0.57459167]
[1732245321687,38.75548243,261.01,260.8,0.57459167]
[1732245321985,0.71844968,261.09,260.8,0.57459167]
[1732245322167,0.7182478,261.11,260.8,0.57459167]
[1732245322486,0.7182478,261.11,260.81,23.89749837]
[1732245322695,0.7182478,261.11,260.83,23.89749837]
[1732245322859,0.71819371,261.2,260.89,25.57]
[1732245323064,0.71788002,261.26,260.94,23.89749837]
[1732245323264,0.71788002,261.26,260.95,0.57426936]
[1732245323478,38.75548243,261.22,260.95,0.57426936]
[1732245323684,38.75548243,261.18,260.95,0.57426936]
[1732245323885,0.71809465,261.17,260.95,0.57426936]
[1732245324087,0.71800192,261.25,260.95,0.57426936]
[1732245324385,0.71800192,261.25,260.96,3.84]
[1732245324572,0.71800192,261.25,260.97,0.57423493]
[1732245324767,0.71780335,261.26,260.97,0.57423493]
[1732245324964,0.71775653,261.3,260.99,3.84]
[1732245325168,38.75548243,261.29,261.0,0.57416646]
[1732245325388,38.75548243,261.25,261.0,0.57416646]
[1732245325566,38.75548243,261.2,261.0,0.57416646]
[1732245325889,0.71800741,261.19,261.0,0.57416646]
[1732245326213,19.1244,261.45,261.0,0.57416646]
[1732245326214,38.75548243,261.33,261.0,0.57416646]
[1732245326397,0.71766425,261.32,261.0,0.57416646]
[1732245326566,38.75548243,261.35,261.03,3.84]
[1732245326886,38.75548243,261.28,261.04,0.57401043]
[1732245327098,38.75548243,261.24,261.04,0.57401043]
[1732245327263,38.75548243,261.2,261.04,0.57401043]
[1732245327467,2.5,261.29,261.04,0.57401043]
[1732245327468,0.71802841,261.29,261.04,0.57401043]
[1732245327680,38.75548243,261.31,261.04,0.57401043]
[1732245327873,0.71774353,261.3,261.04,0.57401043]
[1732245328070,38.75548243,261.29,261.04,0.57401043]
[1732245328285,38.75548243,261.25,261.04,0.57401043]
[1732245328482,38.75548243,261.25,261.0,0.09367462]
[1732245328483,38.75548243,261.18,261.0,0.09367462]
[1732245328788,38.75548243,261.21,261.0,0.66817869]
[1732245328985,20.0,261.39,261.0,0.66817869]
[1732245329171,23.776884,261.29,261.04,2.5]
[1732245329370,23.776884,261.22,261.02,0.57433055]
[1732245329585,23.776884,261.22,261.01,2.5]
[1732245329586,0.42886595,261.21,261.04,0.57433055]
[1732245329793,0.42886595,261.24,261.06,2.5]
[1732245330028,0.42886595,261.24,261.08,5.0]
[1732245330313,38.75548243,261.31,261.15,2.5]
[1732245330491,38.75548243,261.35,261.18,2.5]
[1732245330697,0.42886595,261.34,261.13,2.5]
[1732245330992,38.75548243,261.28,261.1,2.5]
[1732245331190,38.75548243,261.26,261.09,2.5]
[1732245331390,38.75548243,261.2,261.0,2.59367462]
[1732245331602,0.42886595,261.19,261.0,2.59367462]
[1732245331814,38.75548243,261.26,261.06,2.5]
[1732245331983,38.75548243,261.21,261.01,0.57440013]
[1732245332189,0.42886595,261.2,261.01,0.57440013]
[1732245332402,38.75548243,261.15,261.0,0.09367462]
[1732245332698,0.42886595,261.14,261.0,0.09367462]
[1732245333009,0.42886595,261.28,261.09,2.5]
[1732245333305,38.75548243,261.28,261.11,2.5]
[1732245333507,38.75548243,261.23,261.0,0.09367462]
[1732245333683,38.75548243,261.21,261.01,5.0]
[1732245333878,0.42886595,261.2,261.02,3.07435553]
[1732245334085,0.42886595,261.2,261.04,5.0]
[1732245334286,0.42886595,261.22,261.04,2.5]
[1732245334491,0.42886595,261.22,261.05,2.5]
[1732245334706,0.42886595,261.24,261.05,2.5]
[1732245334891,0.42886595,261.24,261.04,3.07432934]
[1732245335208,0.42886595,261.24,261.05,2.5]
[1732245335502,0.42886595,261.24,261.08,2.5]
[1732245335689,38.75548243,261.22,261.01,2.5]
[1732245335889,38.75548243,261.3,260.99,0.09367462]
[1732245335890,38.75548243,261.11,260.99,0.09367462]
[1732245336092,38.75548243,261.09,260.9,0.57467537]
[1732245336292,38.75548243,261.07,260.87,9.51433819]
[1732245336490,0.42886595,261.06,260.87,9.51433819]
[1732245336712,38.75548243,261.05,260.88,2.5]
[1732245336915,0.42886595,261.04,260.87,3.07473819]
[1732245337091,0.42886595,261.04,260.87,0.57473819]
[1732245337406,24.20574995,261.04,260.87,0.57473819]
[1732245337719,24.20574995,261.04,260.76,8.9396]
[1732245337720,38.75548243,260.97,260.77,5.57480666]
[1732245338015,38.75548243,260.95,260.77,3.07480666]
[1732245338310,0.42886595,260.94,260.81,2.5]
[1732245338492,0.42886595,261.01,260.83,5.0]
[1732245338700,38.75548243,260.98,260.79,2.5]
[1732245338911,38.75548243,260.91,260.74,2.5]
[1732245339208,38.75548243,260.87,260.69,2.5]
[1732245339415,24.20574995,260.86,260.73,2.5]
[1732245339604,0.42886595,260.86,260.73,2.5]
[1732245339793,0.42886595,260.89,260.74,2.5]
[1732245339991,23.776884,260.87,260.74,2.5]
[1732245340193,0.42886595,260.86,260.74,2.5]
[1732245340419,38.75548243,260.82,260.61,3.0751801]
[1732245340591,24.20574995,260.81,260.61,3.0751801]
[1732245340793,24.20574995,260.81,260.63,2.5]
[1732245341017,38.75548243,260.86,260.68,2.5]
[1732245341316,24.20574995,260.85,260.68,3.07518162]
[1732245341993,38.75548243,260.86,260.53,15.316581]
[1732245341994,23.776884,260.83,260.63,5.0]
[1732245342187,0.19916595,260.82,260.68,5.0]
[1732245342391,23.776884,260.86,260.68,2.5]
[1732245342690,23.776884,260.84,260.68,2.5]
[1732245342892,0.19916595,260.83,260.68,2.5]
[1732245343402,0.19916595,260.83,260.65,0.57519774]
[1732245343602,0.19916595,260.83,260.68,2.5]
[1732245343804,23.23549799,261.22,260.78,2.5]
[1732245343996,38.75548243,260.98,260.8,2.5]
[1732245344197,0.19916595,260.97,260.81,2.5]
[1732245344715,0.19916595,261.1,260.91,2.5]
[1732245344926,38.75548243,261.14,260.92,2.5]
[1732245345095,38.75548243,261.14,260.85,0.57467324]
[1732245345096,0.19916595,261.13,260.94,2.5]
[1732245345622,3.8288,261.18,260.94,2.5]
[1732245345623,2.5,261.25,261.03,2.5]
[1732245345791,0.19916595,261.24,261.07,2.5]
[1732245345997,0.19916595,261.24,261.06,2.5]
[1732245346209,38.75548243,261.23,261.06,2.5]
[1732245346398,38.75548243,261.19,261.0,2.5]
[1732245346607,0.19916595,261.18,260.98,2.5]
[1732245346924,38.75548243,261.13,260.94,5.0]
[1732245347214,0.19916595,261.12,260.94,5.0]
[1732245348002,23.97604995,261.14,260.94,5.0]
[1732245348513,23.97604995,261.14,260.94,2.5]
[1732245348824,23.776884,261.12,260.9,5.0]
[1732245349017,23.776884,261.12,260.81,3.84]
[1732245349018,0.19916595,261.11,260.93,2.5]
[1732245349619,0.19916595,261.11,260.94,5.0]
[1732245350005,0.19916595,261.11,260.97,2.5]
[1732245350212,0.19916595,261.14,260.95,2.5]
[1732245350524,0.19916595,261.14,260.96,2.5]
[1732245350709,0.19916595,261.14,260.98,2.5]
[1732245350913,0.19916595,261.14,260.96,5.0]
[1732245351092,0.19916595,261.14,260.99,2.5]
[1732245351300,0.19916595,261.18,260.99,2.5]
[1732245351598,0.19916595,261.18,261.02,2.5]
[1732245352128,38.75548243,261.14,260.94,2.5]
[1732245352299,38.75548243,261.14,260.94,5.0]
[1732245352300,0.19916595,261.13,260.94,5.0]
[1732245352499,23.97604995,261.13,260.94,5.0]
[1732245353129,0.19916595,261.13,260.99,2.5]
[1732245353305,23.97604995,261.19,261.01,2.5]
[1732245353628,23.97604995,261.19,260.99,5.0]
[1732245353925,23.776884,261.17,260.99,5.0]
[1732245354107,0.19916595,261.16,260.97,5.0]
[1732245354305,38.75548243,261.14,260.95,2.5]
[1732245354505,0.19916595,261.13,261.0,2.5]
[1732245354713,23.97604995,261.17,261.0,5.0]
[1732245355123,23.97604995,261.17,261.0,2.5]
[1732245355418,0.19916595,261.17,261.03,2.5]
[1732245355612,0.19916595,261.17,261.05,2.5]
[1732245355804,0.19916595,261.2,261.05,2.5]
[1732245356124,0.19916595,261.29,261.15,2.5]
[1732245356330,38.75548243,261.31,261.13,2.5]
[1732245356506,0.19916595,261.3,261.13,2.5]
[1732245356704,0.19916595,261.3,261.13,5.0]
[1732245356905,0.19916595,261.3,261.17,2.5]
[1732245357527,0.19916595,261.32,261.17,2.5]
[1732245358026,38.75548243,261.28,261.09,2.5]
[1732245358219,0.19916595,261.27,261.11,2.5]
[1732245358522,0.19916595,261.29,261.14,2.5]
[1732245358924,38.75548243,261.28,261.06,2.5]
[1732245359243,38.75548243,261.24,261.06,2.5]
[1732245359415,0.19916595,261.23,261.07,2.5]
[1732245359734,0.19916595,261.23,261.05,2.5]
[1732245359933,0.19916595,261.23,261.12,2.5]
[1732245360154,0.19916595,261.23,260.95,4.41437569]
[1732245360155,38.75548243,261.26,261.06,2.5]
[1732245360462,38.75548243,261.19,261.02,2.5]
[1732245360759,0.19916595,261.18,261.02,2.5]
[1732245361255,23.97604995,261.18,261.02,2.5]
[1732245361653,0.19916595,261.29,261.16,2.5]
[1732245361849,0.19916595,261.29,261.14,5.0]
[1732245362032,0.19916595,261.29,261.14,2.5]
[1732245362237,0.19916595,261.31,261.16,5.0]
[1732245362752,29.99990136,261.32,261.14,2.5]
[1732245363052,0.19916595,261.31,261.15,2.5]
[1732245363432,0.19916595,261.31,261.17,5.0]
[1732245363637,62.49678243,261.43,261.2,2.5]
[1732245363638,0.19916595,261.33,261.2,2.5]
[1732245363835,0.19916595,261.42,261.26,2.5]
[1732245364054,38.75548243,261.5,261.35,2.5]
[1732245364234,0.19916595,261.49,261.35,2.5]
[1732245364436,0.19916595,261.51,261.35,2.5]
[1732245364938,38.75548243,261.5,261.35,2.5]
[1732245365162,0.19916595,261.49,261.4,2.5]
[1732245365342,0.19916595,261.59,261.5,2.5]
[1732245365542,0.79916595,261.74,261.59,5.0]
[1732245365750,0.6,261.74,261.59,2.5]
[1732245366157,0.79916595,261.74,261.59,2.5]
[1732245366464,38.75548243,261.72,261.55,2.5]
[1732245366644,38.75548243,261.68,261.52,2.5]
[1732245366845,0.19916595,261.71,261.46,2.5]
[1732245366846,0.19916595,261.59,261.46,2.5]
[1732245367040,0.19916595,261.59,261.43,5.0]
[1732245367344,0.19916595,261.68,261.58,2.5]
[1732245367557,0.6,261.74,261.59,2.5]
[1732245368066,0.6,261.74,261.62,2.5]
[1732245368262,0.6,261.74,261.68,2.5]
[1732245368454,0.6,261.74,261.51,4.41315347]
[1732245368455,0.6,261.74,261.61,2.5]
[1732245368770,0.19916595,261.73,261.72,2.5]
[1732245368950,0.1,261.74,261.73,2.5]
[1732245369159,0.1,261.74,261.73,10.97352033]
[1732245369339,0.1,261.74,261.73,4.63352033]
[1732245369757,0.1,261.74,261.73,2.5]
[1732245370252,0.1,261.74,261.73,9.69155696]
[1732245370459,0.1,261.74,261.73,7.19155696]
[1732245370764,0.1,261.74,261.73,2.5]
[1732245370957,0.1,261.74,261.71,2.5]
[1732245371264,0.1,261.74,261.72,2.5]
[1732245371467,0.1,261.74,261.62,8.5042]
[1732245371468,38.85548243,261.74,261.61,2.5]
[1732245371666,38.85548243,261.74,261.5,9.2982]
[1732245371667,0.1,261.74,261.66,2.5]
[1732245371843,23.37214701,261.92,261.86,5.0]
[1732245372048,23.37214701,261.92,261.74,0.1]
[1732245372049,23.37214701,261.92,261.87,16.31075946]
[1732245372246,23.37214701,261.92,261.88,2.5]
[1732245372569,9.13214701,261.92,261.82,2.5]
[1732245372772,9.13214701,261.92,261.78,2.5]
[1732245373079,9.13214701,261.92,261.65,2.5]
[1732245373080,38.75548243,261.79,261.65,2.5]
[1732245373367,12.95014701,261.92,261.58,3.84]
[1732245373368,38.75548243,261.73,261.59,2.5]
[1732245373568,38.75548243,261.67,261.51,2.5]
[1732245373756,38.75548243,261.61,261.45,2.5]
[1732245373952,38.75548243,261.59,261.48,2.5]
[1732245374152,38.75548243,261.64,261.53,2.5]
[1732245374547,38.75548243,261.68,261.56,5.0]
[1732245374747,38.75548243,261.68,261.27,19.6677372]
[1732245374748,38.75548243,261.73,261.63,2.5]
[1732245374948,38.75548243,261.76,261.66,2.5]
[1732245375159,38.75548243,261.76,261.73,2.5]
[1732245375355,38.75548243,261.82,261.77,2.5]
[1732245375586,38.75548243,261.86,261.81,2.5]
[1732245375758,38.75548243,261.86,261.78,2.5]
[1732245375960,1.90909,262.0,261.91,5.0]
[1732245376287,1.90909,262.0,261.91,8.84]
[1732245376477,6.94484701,261.92,261.91,8.84]
[1732245376656,1.90909,262.0,261.99,5.0]
[1732245377055,1.90909,262.0,261.99,10.29102245]
[1732245377273,1.90909,262.0,261.99,14.13102245]
[1732245377470,1.90909,262.0,261.99,10.29102245]
[1732245377680,1.90909,262.0,261.99,5.0]
[1732245377986,1.90909,262.0,261.99,9.86765578]
[1732245378199,1.78369,262.0,261.99,5.0]
[1732245379069,1.78369,262.0,261.99,9.54290874]
[1732245379272,1.78369,262.0,261.99,10.36797239]
[1732245379671,1.65829,262.0,261.99,10.36797239]
[1732245379866,0.5440539,262.15,262.14,5.0]
[1732245380067,0.5440539,262.15,262.14,9.42294763]
[1732245380458,0.5440539,262.15,262.14,5.0]
[1732245380671,0.5440539,262.15,262.14,9.41189763]
[1732245381969,0.5440539,262.15,262.13,2.5]
[1732245382288,38.75548243,262.14,262.1,2.5]
[1732245382484,38.75548243,262.11,262.08,2.5]
[1732245382787,2.5,262.07,261.48,2.5]
[1732245382980,2.5,262.07,261.53,2.5]
[1732245382981,38.75548243,261.66,261.53,2.5]
[1732245383182,38.75548243,261.81,261.62,2.5]
[1732245383394,28.6149592,262.08,261.73,2.5]
[1732245383395,0.57218046,262.05,261.73,2.5]
[1732245383688,0.57218046,262.07,261.74,3.07255847]
[1732245383986,38.75548243,262.09,261.86,2.5]
[1732245384166,38.75548243,262.07,261.87,0.57233052]
[1732245384365,38.75548243,261.99,261.74,2.5]
[1732245384585,38.75548243,262.01,261.78,2.5]
[1732245384794,38.75548243,262.03,261.79,0.57248414]
[1732245385173,38.75548243,262.03,261.79,3.07248414]
[1732245385380,0.57218046,262.09,261.79,3.07248414]
[1732245385381,38.75548243,262.07,261.79,5.57248414]
[1732245385589,0.5440539,262.15,261.88,25.57]
[1732245385886,0.5440539,262.15,261.91,2.5]
[1732245386090,38.75548243,262.11,261.92,0.57218413]
[1732245386586,38.75548243,262.04,261.92,0.57218413]
[1732245386769,38.75548243,261.99,261.74,5.0]
[1732245386973,38.75548243,261.99,261.75,0.57254154]
[1732245387276,38.75548243,262.01,261.76,2.5]
[1732245387500,38.75548243,262.01,261.62,19.7449658]
[1732245387501,38.75548243,261.93,261.77,0.57252007]